bitfinex/quotes_SOLUSD_20250313
["timestamp","ask_amount","ask_price","bid_price","bid_amount"]
[1741874318974,94.72717046,124.38,124.31,24.172909]
[1741874319176,24.172909,124.37,124.32,24.172909]
[1741874319479,94.72717046,124.38,124.26,1.591]
[1741874319480,24.172909,124.33,124.26,1.591]
[1741874319677,24.172909,124.33,124.28,8.0463]
[1741874319878,24.172909,124.36,124.3,24.172909]
[1741874320052,24.172909,124.35,124.3,24.172909]
[1741874320381,44.172909,124.34,124.28,32.219209]
[1741874320560,24.172909,124.33,124.28,32.219209]
[1741874321284,24.172909,124.33,124.28,8.0463]
[1741874321453,24.172909,124.33,124.28,32.219209]
[1741874321658,24.172909,124.35,124.3,24.172909]
[1741874322279,24.172909,124.36,124.31,24.172909]
[1741874322581,24.172909,124.37,124.32,24.172909]
[1741874322769,24.172909,124.37,124.31,24.172909]
[1741874323176,24.172909,124.34,124.29,24.172909]
[1741874323354,44.172909,124.35,124.29,24.172909]
[1741874323557,90.7028,124.38,124.3,24.172909]
[1741874323558,20.0,124.34,124.3,24.172909]
[1741874323791,20.0,124.34,124.27,28.1643]
[1741874323792,24.172909,124.34,124.27,28.1643]
[1741874323969,24.172909,124.35,124.29,24.172909]
[1741874324172,24.172909,124.36,124.3,24.172909]
[1741874324468,20.0,124.34,124.29,24.172909]
[1741874324676,44.172909,124.34,124.29,24.172909]
[1741874324865,20.0,124.34,124.29,24.172909]
[1741874325069,24.172909,124.36,124.31,24.172909]
[1741874325282,41.773609,124.37,124.31,24.172909]
[1741874325784,8.0407,124.37,124.31,32.217109]
[1741874325985,24.172909,124.37,124.32,24.172909]
[1741874326181,0.063,124.38,124.33,24.172909]
[1741874326384,0.063,124.38,124.37,24.172909]
[1741874327271,0.063,124.38,124.37,31.763209]
[1741874327672,0.063,124.38,124.37,39.803709]
[1741874327986,0.063,124.38,124.37,7.5903]
[1741874328169,0.063,124.38,124.34,32.215209]
[1741874328369,24.235909,124.38,124.33,1.6614]
[1741874328685,24.235909,124.38,124.34,24.172909]
[1741874328686,0.063,124.38,124.34,24.172909]
[1741874328989,0.063,124.38,124.33,1.6614]
[1741874329185,0.063,124.38,124.35,24.172909]
[1741874329982,0.063,124.38,124.36,24.172909]
[1741874331188,0.063,124.38,124.35,24.172909]
[1741874331367,24.172909,124.37,124.29,7.6766]
[1741874331685,24.172909,124.35,124.29,39.894909]
[1741874331876,20.0,124.36,124.31,24.172909]
[1741874332089,20.1628,124.38,124.34,24.172909]
[1741874332090,0.063,124.38,124.34,24.172909]
[1741874332482,8.1031,124.38,124.34,24.172909]
[1741874332691,0.063,124.38,124.33,24.172909]
[1741874332866,0.063,124.38,124.34,24.172909]
[1741874333074,0.063,124.38,124.35,24.172909]
[1741874333275,0.063,124.38,124.36,24.172909]
[1741874333481,0.063,124.38,124.35,24.172909]
[1741874333669,0.063,124.38,124.36,24.172909]
[1741874333991,0.063,124.38,124.34,8.042]
[1741874334191,0.063,124.38,124.35,24.172909]
[1741874334575,0.063,124.38,124.34,8.042]
[1741874334576,0.063,124.38,124.36,24.172909]
[1741874334888,0.063,124.38,124.37,24.172909]
[1741874335388,0.063,124.38,124.36,8.179]
[1741874335692,0.063,124.38,124.37,33.652909]
[1741874335871,0.063,124.42,124.41,24.172909]
[1741874336070,0.063,124.42,124.38,8.0398]
[1741874336390,0.063,124.42,124.38,24.172909]
[1741874336687,0.063,124.42,124.37,41.693109]
[1741874336893,0.063,124.42,124.37,33.652909]
[1741874337290,0.063,124.42,124.38,24.172909]
[1741874337478,0.063,124.42,124.41,24.172909]
[1741874337872,0.063,124.42,124.41,32.210809]
[1741874338172,0.063,124.42,124.41,32.49513214]
[1741874338372,0.063,124.42,124.41,32.210809]
[1741874339576,0.063,124.42,124.41,344.210809]
[1741874340185,0.063,124.42,124.41,32.210809]
[1741874340878,0.063,124.42,124.38,8.0398]
[1741874341076,0.063,124.42,124.41,24.172909]
[1741874342075,0.063,124.42,124.4,24.172909]
[1741874342377,0.063,124.42,124.41,24.172909]
[1741874343090,0.063,124.42,124.39,8.0389]
[1741874343298,0.063,124.42,124.41,24.172909]
[1741874343469,0.063,124.42,124.4,24.172909]
[1741874344080,0.063,124.42,124.37,24.172909]
[1741874344290,0.063,124.42,124.38,24.172909]
[1741874344679,0.063,124.42,124.37,24.172909]
[1741874344986,0.063,124.42,124.39,24.172909]
[1741874345183,0.063,124.42,124.41,24.172909]
[1741874346097,0.063,124.42,124.41,32.210809]
[1741874346503,0.063,124.42,124.39,24.172909]
[1741874346684,0.063,124.42,124.4,8.0382]
[1741874346888,0.063,124.42,124.41,24.172909]
[1741874347693,0.063,124.42,124.36,9.5577]
[1741874347995,0.063,124.42,124.39,24.172909]
[1741874348391,0.063,124.42,124.36,9.5577]
[1741874348592,0.063,124.42,124.39,24.172909]
[1741874348776,0.063,124.42,124.4,24.172909]
[1741874349285,0.063,124.42,124.41,24.172909]
[1741874350379,0.063,124.42,124.39,24.172909]
[1741874351299,0.063,124.42,124.36,9.5577]
[1741874351680,0.063,124.42,124.39,24.172909]
[1741874351887,0.063,124.42,124.4,24.172909]
[1741874352300,0.063,124.42,124.41,24.172909]
[1741874352601,0.063,124.42,124.4,24.172909]
[1741874352807,0.063,124.42,124.41,24.172909]
[1741874354398,0.063,124.42,124.41,32.210809]
[1741874354804,0.063,124.42,124.41,8.0379]
[1741874355011,0.063,124.42,124.41,32.210809]
[1741874355390,0.063,124.42,124.41,24.172909]
[1741874357407,0.063,124.42,124.41,32.210809]
[1741874357787,0.063,124.42,124.41,8.0379]
[1741874357994,0.063,124.42,124.41,32.210809]
[1741874361104,0.0001,124.42,124.41,32.49513214]
[1741874361312,0.0001,124.43,124.41,51.144781]
[1741874361491,0.0001,124.43,124.42,43.106881]
[1741874361809,0.0001,124.43,124.42,24.172909]
[1741874362989,0.0001,124.43,124.42,32.210109]
[1741874365427,0.0001,124.43,124.42,24.172909]
[1741874366231,0.0001,124.43,124.4,8.0385]
[1741874366403,0.0001,124.43,124.4,32.211409]
[1741874366718,0.0001,124.43,124.39,24.172909]
[1741874366904,0.0001,124.43,124.38,0.03]
[1741874366905,0.0001,124.43,124.38,24.202909]
[1741874367105,8.0367,124.43,124.38,24.202909]
[1741874367310,32.209609,124.43,124.38,8.0697]
[1741874367502,24.172909,124.41,124.38,0.03]
[1741874367709,24.172909,124.4,124.38,0.03]
[1741874367921,18.64964886,124.42,124.38,0.03]
[1741874368103,24.172909,124.41,124.38,0.03]
[1741874368303,90.6367,124.43,124.38,0.03]
[1741874368521,24.172909,124.41,124.38,0.03]
[1741874368829,82.6001,124.43,124.39,24.172909]
[1741874369043,82.6001,124.43,124.39,32.211909]
[1741874369510,24.172909,124.42,124.38,0.03]
[1741874369710,114.809709,124.43,124.38,8.0697]
[1741874370033,0.0001,124.43,124.39,24.172909]
[1741874370337,0.0001,124.43,124.38,32.242509]
[1741874370701,0.0001,124.43,124.39,24.172909]
[1741874371127,0.0001,124.43,124.4,32.211409]
[1741874371433,0.0001,124.43,124.41,24.172909]
[1741874371917,0.0001,124.43,124.42,24.172909]
[1741874372936,0.0001,124.43,124.42,32.210109]
[1741874373728,0.0001,124.43,124.42,8.0372]
[1741874373926,0.0001,124.43,124.42,32.210109]
[1741874374428,0.0001,124.43,124.42,46.57293982]
[1741874374732,0.0001,124.43,124.4,38.53573982]
[1741874375127,0.0001,124.43,124.4,8.038]
[1741874375526,0.0001,124.43,124.39,46.57463982]
[1741874375712,0.0001,124.43,124.39,8.0389]
[1741874376135,0.0001,124.43,124.4,38.53573982]
[1741874376730,0.0001,124.43,124.39,46.57463982]
[1741874377104,0.0001,124.43,124.4,38.53573982]
[1741874377614,0.0001,124.43,124.39,46.57463982]
[1741874378030,0.0001,124.43,124.39,46.60463982]
[1741874378837,0.0001,124.43,124.4,38.53573982]
[1741874379007,0.0001,124.43,124.4,46.57423982]
[1741874379207,0.0001,124.43,124.4,8.0385]
[1741874379433,0.0001,124.43,124.4,38.53573982]
[1741874380210,0.0001,124.43,124.41,38.53573982]
[1741874380514,0.0001,124.43,124.39,8.0689]
[1741874380834,0.0001,124.43,124.4,38.53573982]
[1741874381225,0.0001,124.43,124.41,46.57363982]
[1741874381740,0.0001,124.43,124.41,38.53573982]
[1741874381919,0.0001,124.43,124.4,8.0383]
[1741874382240,0.0001,124.43,124.41,38.53573982]
[1741874383339,0.0001,124.43,124.41,46.57353982]
[1741874383634,0.0001,124.43,124.41,38.53573982]
[1741874384233,0.0001,124.43,124.42,38.53573982]
[1741874384613,0.0001,124.43,124.41,38.53573982]
[1741874384816,0.0001,124.43,124.42,38.53573982]
[1741874385339,0.0001,124.43,124.42,46.57293982]
[1741874385743,0.0001,124.43,124.39,58.66373982]
[1741874385910,0.0001,124.43,124.42,38.53573982]
[1741874387327,0.0001,124.43,124.42,46.85726296]
[1741874387534,0.0001,124.43,124.42,358.57293982]
[1741874387909,0.0001,124.43,124.42,46.57293982]
[1741874389680,0.0001,124.43,124.42,46.85726296]
[1741874389848,0.0001,124.43,124.42,46.88726296]
[1741874390945,0.0001,124.43,124.42,358.88726296]
[1741874391438,0.0001,124.43,124.42,358.60293982]
[1741874391741,0.0001,124.43,124.42,46.60293982]
[1741874394545,0.0001,124.43,124.42,8.0672]
[1741874394853,0.0001,124.43,124.42,46.60293982]
[1741874396242,0.0001,124.43,124.42,32.15222716]
[1741874400332,0.0001,124.43,124.42,0.03]
[1741874400530,20.0,124.4,124.39,0.03]
[1741874400842,18.64964886,124.39,124.38,0.03]
[1741874401049,67.10402632,124.39,124.38,0.03]
[1741874401355,18.64964886,124.35,124.33,13.69611498]
[1741874401557,20.28432314,124.36,124.33,13.69611498]
[1741874401558,49.04119916,124.34,124.33,13.69611498]
[1741874401738,48.75687602,124.34,124.29,0.03]
[1741874401929,24.08502716,124.32,124.29,0.03]
[1741874402134,30.10722716,124.34,124.29,0.03]
[1741874402335,6.0222,124.34,124.3,38.6237944]
[1741874402764,44.6459944,124.34,124.29,38.6537944]
[1741874402969,38.6237944,124.33,124.29,0.03]
[1741874403659,38.6237944,124.31,124.29,0.03]
[1741874403957,38.6237944,124.3,124.29,0.03]
[1741874404267,57.5577664,124.3,124.26,0.03]
[1741874404438,58.6237944,124.27,124.26,0.03]
[1741874404637,77.27344326,124.27,124.26,0.03]
[1741874404858,77.5577664,124.27,124.26,0.03]
[1741874405054,77.27344326,124.27,124.26,0.03]
[1741874405655,18.64964886,124.26,124.18,38.6237944]
[1741874405854,18.64964886,124.26,124.2,38.6237944]
[1741874406039,38.6237944,124.25,124.19,38.6237944]
[1741874406235,38.6237944,124.24,124.18,38.6237944]
[1741874406471,38.6237944,124.24,124.15,234.42055906]
[1741874406641,38.6237944,124.24,124.18,38.6237944]
[1741874406947,27.88964886,124.26,124.19,38.6237944]
[1741874407151,38.6237944,124.24,124.18,38.6237944]
[1741874407347,38.6237944,124.24,124.15,526.2891]
[1741874407558,38.6237944,124.21,124.16,38.6237944]
[1741874407753,38.6237944,124.2,124.15,38.6237944]
[1741874408068,44.9451944,124.21,124.15,38.6237944]
[1741874408266,44.9451944,124.21,124.16,38.6237944]
[1741874408572,54.1851944,124.21,124.15,38.6237944]
[1741874408762,6.3214,124.21,124.18,38.6237944]
[1741874409069,6.3214,124.21,124.17,38.6237944]
[1741874409269,6.3214,124.21,124.18,38.6237944]
[1741874409478,6.5407,124.24,124.19,38.6237944]
[1741874409762,6.5407,124.24,124.2,38.6237944]
[1741874410665,45.1644944,124.24,124.19,38.6237944]
[1741874411061,38.6237944,124.23,124.17,38.6237944]
[1741874411364,6.5407,124.24,124.15,38.6237944]
[1741874411365,38.6237944,124.21,124.15,38.6237944]
[1741874411542,38.6237944,124.19,124.11,6.55397682]
[1741874411740,18.64964886,124.22,124.11,38.6237944]
[1741874411941,38.6237944,124.21,124.16,38.6237944]
[1741874412140,38.6237944,124.22,124.11,45.54499929]
[1741874412364,38.6237944,124.22,124.16,38.6237944]
[1741874412951,58.6237944,124.21,124.11,38.76595597]
[1741874413146,20.0,124.21,124.16,38.6237944]
[1741874413349,25.19034886,124.24,124.18,38.6237944]
[1741874413553,38.6237944,124.23,124.18,38.6237944]
[1741874413762,38.6237944,124.23,124.17,38.6237944]
[1741874413974,38.6237944,124.22,124.17,38.6237944]
[1741874414272,45.1644944,124.24,124.19,38.6237944]
[1741874414451,45.1644944,124.24,124.2,38.6237944]
[1741874414452,6.5407,124.24,124.2,38.6237944]
[1741874414648,6.5407,124.24,124.21,38.6237944]
[1741874414872,6.5407,124.24,124.16,0.31432314]
[1741874415063,6.5407,124.24,124.16,0.03]
[1741874415064,6.82502314,124.24,124.16,0.03]
[1741874415365,14.78866036,124.24,124.19,38.6237944]
[1741874415667,6.5407,124.24,124.2,38.6237944]
[1741874415843,6.5407,124.24,124.21,38.6237944]
[1741874416169,38.6237944,124.27,124.18,38.6237944]
[1741874416472,38.6237944,124.26,124.21,38.6237944]
[1741874416963,38.6237944,124.27,124.22,38.6237944]
[1741874417267,38.6237944,124.27,124.18,38.6237944]
[1741874417268,6.4307,124.28,124.23,38.6237944]
[1741874417939,38.6237944,124.27,124.19,9.24]
[1741874418166,6.4307,124.28,124.21,38.6237944]
[1741874418343,38.6237944,124.27,124.22,38.6237944]
[1741874418538,38.6237944,124.26,124.18,9.24]
[1741874418761,38.6237944,124.26,124.2,38.6237944]
[1741874418975,58.6237944,124.25,124.2,38.6237944]
[1741874419270,58.6237944,124.25,124.19,38.6237944]
[1741874419574,58.6237944,124.24,124.19,38.6237944]
[1741874420075,9.24,124.27,124.2,38.6237944]
[1741874420370,6.4307,124.28,124.21,38.6237944]
[1741874420371,20.0,124.25,124.21,38.6237944]
[1741874420671,20.0,124.25,124.22,38.6237944]
[1741874420973,20.0,124.25,124.2,38.6237944]
[1741874421173,20.0,124.25,124.22,38.6237944]
[1741874421372,6.4307,124.28,124.24,38.6237944]
[1741874421553,6.4307,124.28,124.25,38.6237944]
[1741874422269,20.0,124.29,124.21,10.8521]
[1741874422483,58.6237944,124.29,124.23,38.6237944]
[1741874422981,58.6237944,124.29,124.24,38.6237944]
[1741874423157,58.6237944,124.29,124.23,38.6237944]
[1741874423353,58.6237944,124.29,124.21,9.24]
[1741874423558,58.6237944,124.29,124.24,38.6237944]
[1741874423962,38.6237944,124.28,124.21,9.24]
[1741874424146,38.6237944,124.28,124.22,38.6237944]
[1741874424341,20.0,124.29,124.21,38.6237944]
[1741874424342,38.6237944,124.27,124.21,38.6237944]
[1741874424543,38.6237944,124.28,124.23,38.6237944]
[1741874424753,20.0,124.29,124.24,38.6237944]
[1741874424950,20.0,124.29,124.26,38.6237944]
[1741874425366,20.0,124.29,124.25,38.6237944]
[1741874425581,20.0,124.29,124.24,38.6237944]
[1741874425762,20.0,124.29,124.25,38.6237944]
[1741874426162,58.6237944,124.29,124.24,38.6237944]
[1741874426682,38.6237944,124.3,124.24,38.6237944]
[1741874426850,20.063,124.29,124.24,38.6237944]
[1741874427055,20.063,124.29,124.21,312.0]
[1741874427259,20.063,124.29,124.25,38.6237944]
[1741874427676,0.063,124.29,124.26,38.6237944]
[1741874427876,0.063,124.29,124.27,38.6237944]
[1741874428081,0.063,124.29,124.28,46.6700944]
[1741874428269,0.063,124.29,124.28,65.6040664]
[1741874428467,1.5032,124.37,124.28,85.7198664]
[1741874428672,6.6361,124.38,124.35,38.6237944]
[1741874428876,6.6361,124.38,124.31,18.933972]
[1741874429188,45.2598944,124.38,124.33,38.6237944]
[1741874429355,6.6361,124.38,124.32,38.6237944]
[1741874429553,6.6361,124.38,124.28,68.3938]
[1741874429554,38.6237944,124.35,124.3,38.6237944]
[1741874429857,6.6361,124.38,124.28,8.0463]
[1741874429858,38.6237944,124.33,124.28,8.0463]
[1741874430258,38.6237944,124.33,124.28,38.6237944]
[1741874430454,20.0,124.34,124.28,38.6237944]
[1741874430658,38.6237944,124.33,124.28,38.6237944]
[1741874430965,20.0,124.33,124.27,38.6237944]
[1741874431167,20.0,124.33,124.28,38.6237944]
[1741874431383,38.6237944,124.36,124.3,38.6237944]
[1741874431584,38.6237944,124.35,124.3,38.6237944]
[1741874431885,6.656,124.3,124.19,8.0518]
[1741874432046,58.6237944,124.28,124.22,38.6237944]
[1741874432251,38.6237944,124.26,124.21,38.6237944]
[1741874432854,38.6237944,124.25,124.18,1.5034]
[1741874433178,38.6237944,124.25,124.19,38.6237944]
[1741874433474,38.6237944,124.24,124.16,0.03]
[1741874433676,38.6237944,124.23,124.17,38.6237944]
[1741874434086,38.6237944,124.21,124.16,0.03]
[1741874434270,44.23084657,124.25,124.16,38.6537944]
[1741874434579,38.6237944,124.21,124.16,0.03]
[1741874434761,38.6237944,124.19,124.16,0.03]
[1741874435184,38.6237944,124.18,124.16,0.03]
[1741874435379,38.6237944,124.19,124.16,0.03]
[1741874435567,58.6237944,124.18,124.16,0.03]
[1741874436575,20.0,124.18,124.16,0.03]
[1741874436755,38.6237944,124.17,124.16,0.03]
[1741874437157,57.5577664,124.17,124.16,0.03]
[1741874437560,20.0,124.14,124.08,38.6237944]
[1741874437881,38.6237944,124.13,124.08,38.6237944]
[1741874438059,20.0,124.14,124.06,0.03]
[1741874438376,6.0959,124.18,124.11,38.6237944]
[1741874438578,26.0959,124.18,124.14,38.6237944]
[1741874438763,14.5718,124.24,124.17,38.6237944]
[1741874439081,40.7316,124.29,124.15,9.24]
[1741874439082,6.5228,124.28,124.22,38.6237944]
[1741874439272,3.94841279,124.3,124.21,9.24]
[1741874439475,6.5228,124.32,124.26,38.6237944]
[1741874439681,12.06410499,124.3,124.27,38.6237944]
[1741874439977,50.68789939,124.3,124.19,1.6556]
[1741874440182,12.06410499,124.3,124.24,38.6237944]
[1741874440489,57.98756533,124.25,124.2,57.98756533]
[1741874440795,20.0,124.27,124.19,9.24]
[1741874440966,57.98756533,124.25,124.19,9.24]
[1741874441161,57.98756533,124.26,124.2,57.98756533]
[1741874441374,20.0,124.27,124.21,57.98756533]
[1741874441575,57.98756533,124.25,124.19,67.22756533]
[1741874441775,12.06410499,124.3,124.23,57.98756533]
[1741874441984,57.98756533,124.28,124.22,57.98756533]
[1741874442160,57.98756533,124.26,124.21,57.98756533]
[1741874442367,57.98756533,124.26,124.2,57.98756533]
[1741874442585,77.98756533,124.27,124.22,57.98756533]
[1741874442886,77.98756533,124.27,124.21,57.98756533]
[1741874442887,57.98756533,124.26,124.21,57.98756533]
[1741874443059,20.0,124.27,124.21,57.98756533]
[1741874443259,57.98756533,124.24,124.19,67.22756533]
[1741874443471,57.98756533,124.25,124.19,67.22756533]
[1741874443682,57.98756533,124.24,124.19,67.22756533]
[1741874443868,20.0,124.27,124.19,67.22756533]
[1741874444058,20.0,124.27,124.22,57.98756533]
[1741874444487,28.0471,124.27,124.22,57.98756533]
[1741874444661,28.0471,124.27,124.19,9.24]
[1741874444662,57.98756533,124.24,124.19,67.22756533]
[1741874444869,57.98756533,124.23,124.18,57.98756533]
[1741874445070,57.98756533,124.22,124.17,67.22756533]
[1741874445269,57.98756533,124.2,124.13,9.27]
[1741874445488,20.0,124.21,124.13,0.03]
[1741874446078,15.5378,124.22,124.15,57.98756533]
[1741874446079,57.98756533,124.2,124.15,57.98756533]
[1741874446382,57.98756533,124.19,124.13,58.01756533]
[1741874446598,6.2978,124.22,124.18,57.98756533]
[1741874446891,64.11016533,124.27,124.21,57.98756533]
[1741874447066,57.98756533,124.25,124.2,57.98756533]
[1741874447263,57.98756533,124.24,124.19,67.24756533]
[1741874447899,14.1696,124.27,124.2,57.98756533]
[1741874448067,14.1696,124.27,124.21,57.98756533]
[1741874448068,57.98756533,124.26,124.21,57.98756533]
[1741874448391,14.1696,124.27,124.19,67.24756533]
[1741874448392,57.98756533,124.25,124.19,67.24756533]
[1741874448599,57.98756533,124.24,124.19,67.24756533]
[1741874448787,57.98756533,124.25,124.19,67.24756533]
[1741874449194,57.98756533,124.24,124.19,9.26]
[1741874449493,57.98756533,124.25,124.19,67.24756533]
[1741874449666,57.98756533,124.24,124.19,67.24756533]
[1741874449986,57.98756533,124.2,124.13,0.03]
[1741874450188,57.98756533,124.14,124.08,57.98756533]
[1741874450391,77.98756533,124.1,124.06,0.03]
[1741874450597,57.98756533,124.09,124.06,0.03]
[1741874450792,57.98756533,124.09,124.08,25.10424045]
[1741874451173,8.056,124.13,124.08,25.10424045]
[1741874451491,57.98756533,124.1,124.08,25.10424045]
[1741874451679,8.056,124.13,124.08,25.10424045]
[1741874451680,57.98756533,124.09,124.08,25.10424045]
[1741874452066,57.98756533,124.11,124.08,25.10424045]
[1741874452291,9.36,124.16,124.08,83.09180578]
[1741874452494,57.98756533,124.12,124.08,25.10424045]
[1741874452682,57.98756533,124.12,124.08,25.13424045]
[1741874452888,57.98756533,124.14,124.09,57.98756533]
[1741874453071,2.0190647,124.15,124.1,57.98756533]
[1741874453269,2.0190647,124.15,124.14,57.98756533]
[1741874454383,2.0190647,124.15,124.12,57.98756533]
[1741874454582,57.98756533,124.17,124.11,17.4172]
[1741874454780,57.98756533,124.19,124.13,57.98756533]
[1741874454979,57.98756533,124.18,124.13,57.98756533]
[1741874455183,57.98756533,124.18,124.12,57.98756533]
[1741874455681,20.0,124.2,124.13,57.98756533]
[1741874456091,57.98756533,124.18,124.13,57.98756533]
[1741874456469,57.98756533,124.17,124.11,17.4172]
[1741874456670,57.98756533,124.12,124.08,0.03]
[1741874456973,57.98756533,124.09,124.08,0.03]
[1741874457173,6.3454,124.13,124.08,0.03]
[1741874457373,57.98756533,124.1,124.08,0.03]
[1741874457869,57.98756533,124.11,124.08,0.03]
[1741874458075,64.33296533,124.13,124.08,0.03]
[1741874458275,57.98756533,124.13,124.08,0.03]
[1741874458473,20.0,124.14,124.09,57.98756533]
[1741874458786,57.98756533,124.13,124.08,0.03]
[1741874459095,57.98756533,124.12,124.08,0.03]
[1741874460004,20.0,124.14,124.09,57.98756533]
[1741874460301,82.6,124.17,124.12,57.98756533]
[1741874460490,57.98756533,124.17,124.12,57.98756533]
[1741874460689,57.98756533,124.16,124.1,8.058]
[1741874460994,57.98756533,124.19,124.12,0.28432314]
[1741874461188,57.98756533,124.22,124.17,57.98756533]
[1741874461574,57.98756533,124.2,124.15,57.98756533]
[1741874461773,14.1416,124.23,124.14,67.30756533]
[1741874461976,20.0,124.19,124.1,8.058]
[1741874462187,57.98756533,124.16,124.11,57.98756533]
[1741874462380,57.98756533,124.17,124.11,57.98756533]
[1741874462576,82.6,124.21,124.13,57.98756533]
[1741874462777,57.98756533,124.19,124.14,57.98756533]
[1741874463077,57.98756533,124.18,124.13,57.98756533]
[1741874463495,57.98756533,124.19,124.13,57.98756533]
[1741874463679,82.6,124.21,124.15,57.98756533]
[1741874463885,9.32,124.22,124.11,57.98756533]
[1741874463886,57.98756533,124.22,124.17,57.98756533]
[1741874464597,57.98756533,124.19,124.14,67.32756533]
[1741874464798,57.98756533,124.15,124.08,219.6982]
[1741874465002,57.98756533,124.13,124.08,0.03]
[1741874465178,20.0,124.13,124.08,0.03]
[1741874465690,57.98756533,124.11,124.08,8.0891]
[1741874465881,9.36,124.16,124.08,0.03]
[1741874466082,57.98756533,124.11,124.08,0.03]
[1741874466286,82.6,124.15,124.08,0.03]
[1741874466587,57.98756533,124.12,124.08,0.03]
[1741874466788,57.98756533,124.1,124.08,0.03]
[1741874467101,8.0554,124.14,124.08,0.03]
[1741874467313,57.98756533,124.1,124.08,0.03]
[1741874467907,8.0554,124.14,124.08,0.03]
[1741874468209,57.98756533,124.13,124.08,0.03]
[1741874468379,57.98756533,124.12,124.08,0.03]
[1741874468584,82.6,124.15,124.08,0.03]
[1741874468901,57.98756533,124.11,124.08,0.03]
[1741874469191,57.98756533,124.1,124.08,0.03]
[1741874470101,57.98756533,124.11,124.08,0.03]
[1741874470483,57.98756533,124.1,124.08,0.03]
[1741874471495,8.0575,124.11,124.08,0.03]
[1741874472003,57.98756533,124.11,124.08,0.03]
[1741874472241,66.04446533,124.12,124.08,0.03]
[1741874472400,57.98756533,124.13,124.08,58.01756533]
[1741874472706,57.98756533,124.12,124.08,0.03]
[1741874473485,57.98756533,124.1,124.08,0.03]
[1741874474502,57.98756533,124.09,124.08,0.03]
[1741874475000,82.6,124.11,124.08,0.03]
[1741874475202,57.98756533,124.09,124.08,0.03]
[1741874475990,8.0584,124.1,124.08,0.03]
[1741874476195,57.98756533,124.09,124.08,0.03]
[1741874477211,66.04616533,124.09,124.08,0.03]
[1741874477595,8.0582,124.1,124.08,0.03]
[1741874477906,90.6576,124.11,124.08,0.03]
[1741874478208,57.98756533,124.09,124.08,0.03]
[1741874478805,58.27188847,124.09,124.08,0.0001]
[1741874479003,84.98013733,124.09,124.08,0.0001]
[1741874479408,66.04616533,124.09,124.08,0.0001]
[1741874479607,84.83797576,124.09,124.08,0.0001]
[1741874480087,86.85795678,124.09,124.08,0.0001]
[1741874480511,136.8,124.05,124.04,2.31749275]
[1741874480810,77.98756533,124.05,124.04,2.31749275]
[1741874481111,86.04876533,124.05,124.04,2.31749275]
[1741874481296,86.04876533,124.05,123.92,8.0695]
[1741874481297,20.0,124.01,123.92,8.0695]
[1741874481503,57.98756533,123.98,123.92,66.05706533]
[1741874481697,57.98756533,123.97,123.91,8.0702]
[1741874481891,57.98756533,123.96,123.91,66.05776533]
[1741874482090,9.36,124.01,123.92,57.98756533]
[1741874482091,57.98756533,123.98,123.92,57.98756533]
[1741874482290,57.98756533,123.97,123.91,66.05776533]
[1741874482709,57.98756533,123.96,123.91,8.0702]
[1741874482907,13.44213971,124.01,123.88,57.98756533]
[1741874482908,57.98756533,123.94,123.88,57.98756533]
[1741874483113,57.98756533,123.94,123.89,57.98756533]
[1741874483318,57.98756533,123.91,123.87,125.02361576]
[1741874483629,57.98756533,123.92,123.87,133.09641576]
[1741874483799,57.98756533,123.93,123.88,57.98756533]
[1741874484000,57.98756533,123.93,123.87,133.09641576]
[1741874484001,57.98756533,123.92,123.87,66.06036533]
[1741874484199,57.98756533,123.91,123.86,8.0735]
[1741874484410,14.6745,123.95,123.86,66.06106533]
[1741874484598,20.0,123.92,123.81,8.2343]
[1741874484794,9.38,123.91,123.81,16.311]
[1741874484996,9.38,123.91,123.84,57.98756533]
[1741874485198,9.38,123.91,123.85,8.0742]
[1741874485425,9.38,123.91,123.85,66.06176533]